{"text_format":"1","workbook":"xlsx","n_sheets":2,"sheets":["Sheet1","Calculation"],"not_rendered":{"charts":1,"images":0,"macros":1,"external_links":0,"defined_names":0,"comments":0,"pivot_tables":0},"unopened":[],"bounds":{"document_bytes":16777216,"sheet_cells":100000,"rows_first":2000,"rows_last":500,"rows_between":2000,"halvings":0,"cell_chars":16384,"cell_head_chars":4096},"cells_cut":0,"cells_raw":0,"read":"whole","date_system":"1900"}

{"sheet":"Sheet1","index":0,"n_rows":28,"n_cols":18,"rows_kept":28,"cut":false,"hidden":false,"merged":[]}
[]
[null,null,null,null,null,null,null,null,null,null,null,null,null,null,null,null,null,{"$f":"IFERROR(INDEX(Table1[Connected to],MATCH(FALSE,Table1[Connected to]=\"-\",0)+COLUMNS($I$2:R2)-1),\"\")","v":""}]
[]
[]
[]
[]
[]
[]
[]
[]
[]
[]
[]
[]
[]
[]
[]
[null,"Name","Connected to","x","y","Level"]
[null,"A","-",{"$f":"(100/(COUNTIF(Table1[Level],Table1[[#This Row],[Level]])+1))*COUNTIF($F$19:F19,Table1[[#This Row],[Level]])","v":50},{"$f":"100/(MAX(Table1[Level])+1)*(MAX(Table1[Level])-Table1[[#This Row],[Level]]+1)","v":80},{"$f":"IF(C19=\"-\",1,INDEX(Table1[Level],MATCH(C19,Table1[Name],0))+1)","v":1}]
[null,"B","A",{"$f":"(100/(COUNTIF(Table1[Level],Table1[[#This Row],[Level]])+1))*COUNTIF($F$19:F20,Table1[[#This Row],[Level]])","v":25},{"$f":"100/(MAX(Table1[Level])+1)*(MAX(Table1[Level])-Table1[[#This Row],[Level]]+1)","v":60},{"$f":"IF(C20=\"-\",1,INDEX(Table1[Level],MATCH(C20,Table1[Name],0))+1)","v":2}]
[null,"C","A",{"$f":"(100/(COUNTIF(Table1[Level],Table1[[#This Row],[Level]])+1))*COUNTIF($F$19:F21,Table1[[#This Row],[Level]])","v":50},{"$f":"100/(MAX(Table1[Level])+1)*(MAX(Table1[Level])-Table1[[#This Row],[Level]]+1)","v":60},{"$f":"IF(C21=\"-\",1,INDEX(Table1[Level],MATCH(C21,Table1[Name],0))+1)","v":2}]
[null,"D","A",{"$f":"(100/(COUNTIF(Table1[Level],Table1[[#This Row],[Level]])+1))*COUNTIF($F$19:F22,Table1[[#This Row],[Level]])","v":75},{"$f":"100/(MAX(Table1[Level])+1)*(MAX(Table1[Level])-Table1[[#This Row],[Level]]+1)","v":60},{"$f":"IF(C22=\"-\",1,INDEX(Table1[Level],MATCH(C22,Table1[Name],0))+1)","v":2}]
[null,"E","B",{"$f":"(100/(COUNTIF(Table1[Level],Table1[[#This Row],[Level]])+1))*COUNTIF($F$19:F23,Table1[[#This Row],[Level]])","v":25},{"$f":"100/(MAX(Table1[Level])+1)*(MAX(Table1[Level])-Table1[[#This Row],[Level]]+1)","v":40},{"$f":"IF(C23=\"-\",1,INDEX(Table1[Level],MATCH(C23,Table1[Name],0))+1)","v":3}]
[null,"F","B",{"$f":"(100/(COUNTIF(Table1[Level],Table1[[#This Row],[Level]])+1))*COUNTIF($F$19:F24,Table1[[#This Row],[Level]])","v":50},{"$f":"100/(MAX(Table1[Level])+1)*(MAX(Table1[Level])-Table1[[#This Row],[Level]]+1)","v":40},{"$f":"IF(C24=\"-\",1,INDEX(Table1[Level],MATCH(C24,Table1[Name],0))+1)","v":3}]
[null,"G","D",{"$f":"(100/(COUNTIF(Table1[Level],Table1[[#This Row],[Level]])+1))*COUNTIF($F$19:F25,Table1[[#This Row],[Level]])","v":75},{"$f":"100/(MAX(Table1[Level])+1)*(MAX(Table1[Level])-Table1[[#This Row],[Level]]+1)","v":40},{"$f":"IF(C25=\"-\",1,INDEX(Table1[Level],MATCH(C25,Table1[Name],0))+1)","v":3}]
[null,"I","E",{"$f":"(100/(COUNTIF(Table1[Level],Table1[[#This Row],[Level]])+1))*COUNTIF($F$19:F26,Table1[[#This Row],[Level]])","v":25},{"$f":"100/(MAX(Table1[Level])+1)*(MAX(Table1[Level])-Table1[[#This Row],[Level]]+1)","v":20},{"$f":"IF(C26=\"-\",1,INDEX(Table1[Level],MATCH(C26,Table1[Name],0))+1)","v":4}]
[null,"H","G",{"$f":"(100/(COUNTIF(Table1[Level],Table1[[#This Row],[Level]])+1))*COUNTIF($F$19:F27,Table1[[#This Row],[Level]])","v":50},{"$f":"100/(MAX(Table1[Level])+1)*(MAX(Table1[Level])-Table1[[#This Row],[Level]]+1)","v":20},{"$f":"IF(C27=\"-\",1,INDEX(Table1[Level],MATCH(C27,Table1[Name],0))+1)","v":4}]
[null,"J","G",{"$f":"(100/(COUNTIF(Table1[Level],Table1[[#This Row],[Level]])+1))*COUNTIF($F$19:F28,Table1[[#This Row],[Level]])","v":75},{"$f":"100/(MAX(Table1[Level])+1)*(MAX(Table1[Level])-Table1[[#This Row],[Level]]+1)","v":20},{"$f":"IF(C28=\"-\",1,INDEX(Table1[Level],MATCH(C28,Table1[Name],0))+1)","v":4}]

{"sheet":"Calculation","index":1,"n_rows":0,"n_cols":0,"rows_kept":0,"cut":false,"hidden":false,"merged":[]}